[Event "DVM U12W 2021"]
[Site "Willingen"]
[Date "2022.08.14"]
[Round "4"]
[White "Brandt, Clara"]
[Black "Borck, Elena"]
[Result "1-0"]
[ECO "B07"]
[WhiteElo "1161"]
[BlackElo "739"]
[Annotator "NA RC"]
[PlyCount "37"]
[EventDate "2022.08.12"]
[EventType "team-tourn"]
[EventRounds "7"]
[EventCountry "GER"]
[SourceTitle "playchess.com"]
[Source "ChessBase"]
[SourceQuality "1"]
[TimeControl "40/5400+30:1800+30"]

1. e4 {[%emt 0:00:08]} d6 {[%emt 0:00:00]} 2. d4 {[%emt 0:01:17]} Nf6 {[%emt 0:00:18]} 3. Nc3 {[%emt 0:00:48]} g6 {[%emt 0:01:10]} 4. Bg5 {[%emt 0:01:48]} Bg7 {[%emt 0:01:13]} 5. e5 {[%emt 0:01:15]} dxe5 {[%emt 0:00:22]} 6. dxe5 {[%emt 0:04:55]} Qxd1+ {[%emt 0:00:20]} 7. Rxd1 {[%emt 0:02:30]} Ng4 {[%emt 0:01:06]} 8. Nd5 {[%emt 0:02:55]} Bxe5 {[%emt 0:00:37]} 9. Nf3 {[%emt 0:14:37]} c6 {[%emt 0:15:42]} 10. Nxe5 {[%emt 0:01:14]} cxd5 {[%emt 0:04:22]} 11. Bb5+ {[%emt 0:03:10]} Kf8 {[%emt 0:08:53]} 12. Nxg4 {[%emt 0:05:56]} Bxg4 {[%emt 0:03:09]} 13. Rxd5 {[%emt 0:03:37]} Nc6 {[%emt 0:04:24]} 14. O-O {[%emt 0:10:52]} Rd8 {[%emt 0:04:46]} 15. Bxc6 {[%emt 0:06:08]} Rxd5 {[%emt 0:01:46]} 16. Bh6+ {[%emt 0:05:47]} Kg8 {[%emt 0:00:45]} 17. Bxd5 {[%emt 0:06:29]} e6 {[%emt 0:03:32]} 18. Bb3 {[%emt 0:02:07]} f6 {[%emt 0:01:27]} 19. f3 {[%emt 0:00:00]} 1-0

[Event "DVM U12W 2021"]
[Site "Willingen"]
[Date "2022.08.14"]
[Round "4"]
[White "Christiansen, Jana-Marie"]
[Black "Leicher, Anna"]
[Result "0-1"]
[ECO "A29"]
[WhiteElo "1120"]
[BlackElo "1252"]
[Annotator "NA RC"]
[PlyCount "84"]
[EventDate "2022.08.12"]
[EventType "team-tourn"]
[EventRounds "7"]
[EventCountry "GER"]
[SourceTitle "playchess.com"]
[Source "ChessBase"]
[SourceQuality "1"]
[TimeControl "40/5400+30:1800+30"]

1. c4 {[%emt 0:00:19]} e5 {[%emt 0:00:00]} 2. Nc3 {[%emt 0:00:23]} Nf6 {[%emt 0:00:00]} 3. g3 {[%emt 0:00:16]} d5 {[%emt 0:00:12]} 4. cxd5 {[%emt 0:00:13]} Nxd5 {[%emt 0:00:08]} 5. Bg2 {[%emt 0:00:58]} Be6 {[%emt 0:00:28]} 6. Nf3 {[%emt 0:00:44]} Nc6 {[%emt 0:01:32]} 7. e3 {[%emt 0:01:21]} Qd7 {[%emt 0:01:17]} 8. O-O {[%emt 0:00:36]} O-O-O {[%emt 0:00:22]} 9. d4 {[%emt 0:02:27]} exd4 {[%emt 0:00:06]} 10. exd4 {[%emt 0:02:28]} h5 {[%emt 0:04:44]} 11. a3 {[%emt 0:01:37]} Be7 {[%emt 0:04:28]} 12. Re1 {[%emt 0:01:26]} h4 {[%emt 0:06:06]} 13. Qe2 {[%emt 0:01:47]} hxg3 {[%emt 0:01:24]} 14. fxg3 {[%emt 0:02:31]} Bh3 {[%emt 0:00:35]} 15. Nxd5 {[%emt 0:01:38]} Qxd5 {[%emt 0:02:43]} 16. Bxh3+ {[%emt 0:00:42]} Rxh3 {[%emt 0:01:15]} 17. b4 {[%emt 0:02:05]} Nxd4 {[%emt 0:00:45]} 18. Nxd4 {[%emt 0:05:16]} Qxd4+ {[%emt 0:00:04]} 19. Be3 {[%emt 0:06:00]} Qd5 {[%emt 0:01:21]} 20. Qg4+ {[%emt 0:01:14]} Qe6 {[%emt 0:00:47]} 21. Qxg7 {[%emt 0:01:02]} Bf6 {[%emt 0:01:59]} 22. Bg5 {[%emt 0:09:54]} Bxg7 {[%emt 0:00:06]} 23. Rxe6 {[%emt 0:02:25]} Bxa1 {[%emt 0:00:16]} 24. Bxd8 {[%emt 0:00:20]} fxe6 {[%emt 0:00:10]} 25. Bg5 {[%emt 0:00:57]} Rh5 {[%emt 0:00:16]} 26. h4 {[%emt 0:00:37]} Bb2 {[%emt 0:00:11]} 27. a4 {[%emt 0:00:31]} Bc3 {[%emt 0:00:16]} 28. b5 {[%emt 0:00:36]} Kd7 {[%emt 0:00:08]} 29. g4 {[%emt 0:00:48]} Rh8 {[%emt 0:00:17]} 30. h5 {[%emt 0:00:37]} Bg7 {[%emt 0:00:21]} 31. Be3 {[%emt 0:00:35]} b6 {[%emt 0:00:15]} 32. Kf2 {[%emt 0:01:07]} Kd6 {[%emt 0:00:40]} 33. Ke2 {[%emt 0:01:58]} Kd5 {[%emt 0:00:04]} 34. Kd3 {[%emt 0:00:49]} e5 {[%emt 0:00:43]} 35. Bd2 {[%emt 0:00:57]} e4+ {[%emt 0:00:08]} 36. Ke3 {[%emt 0:01:15]} Bh6+ {[%emt 0:00:06]} 37. Ke2 {[%emt 0:00:14]} Bxd2 {[%emt 0:00:06]} 38. Kxd2 {[%emt 0:00:29]} Kd4 {[%emt 0:00:10]} 39. Ke2 {[%emt 0:00:13]} e3 {[%emt 0:00:04]} 40. Ke1 {[%emt 0:00:56]} Kd3 {[%emt 0:00:17]} 41. Kd1 {[%emt 0:30:35]} Rf8 {[%emt 0:30:56]} 42. h6 {[%emt 0:00:10]} Rf1# 0-1

[Event "DVM U12W 2021"]
[Site "Willingen"]
[Date "2022.08.14"]
[Round "4"]
[White "Sayouf, Rafif"]
[Black "Müller, Ariana"]
[Result "1-0"]
[ECO "C50"]
[WhiteElo "1102"]
[BlackElo "975"]
[Annotator "NA RC"]
[PlyCount "121"]
[EventDate "2022.08.12"]
[EventType "team-tourn"]
[EventRounds "7"]
[EventCountry "GER"]
[SourceTitle "playchess.com"]
[Source "ChessBase"]
[SourceQuality "1"]
[TimeControl "40/5400+30:1800+30"]

1. e4 {[%emt 0:00:06]} e5 {[%emt 0:00:11]} 2. Nf3 {[%emt 0:00:06]} Nc6 {[%emt 0:00:26]} 3. Bc4 {[%emt 0:00:15]} Bc5 {[%emt 0:00:00]} 4. Nc3 {[%emt 0:00:36]} d6 {[%emt 0:00:02]} 5. h3 {[%emt 0:00:47]} Nf6 {[%emt 0:00:09]} 6. d3 {[%emt 0:00:47]} Qe7 {[%emt 0:00:33]} 7. Bg5 {[%emt 0:01:12]} h6 {[%emt 0:00:43]} 8. Nd5 {[%emt 0:01:41]} Qd8 {[%emt 0:00:09]} 9. Nxf6+ {[%emt 0:00:30]} gxf6 {[%emt 0:00:31]} 10. Bh4 {[%emt 0:01:30]} Be6 {[%emt 0:05:45]} 11. Nd2 {[%emt 0:01:47]} Qe7 {[%emt 0:01:28]} 12. Qf3 {[%emt 0:07:45]} Nd4 {[%emt 0:07:07]} 13. Qd1 {[%emt 0:01:24]} O-O-O {[%emt 0:00:23]} 14. c3 {[%emt 0:01:01]} Nc6 {[%emt 0:00:30]} 15. Qf3 {[%emt 0:09:40]} Qd7 {[%emt 0:03:06]} 16. Bxf6 {[%emt 0:06:36]} Ne7 {[%emt 0:00:27]} 17. Bxh8 {[%emt 0:00:17]} Rxh8 {[%emt 0:02:42]} 18. O-O-O {[%emt 0:02:27]} d5 {[%emt 0:04:00]} 19. Bb3 {[%emt 0:02:39]} Rg8 {[%emt 0:07:17]} 20. Rhg1 {[%emt 0:01:13]} f6 {[%emt 0:07:27]} 21. g4 {[%emt 0:07:05]} Rf8 {[%emt 0:08:01]} 22. Kb1 {[%emt 0:02:54]} Kb8 {[%emt 0:01:30]} 23. a3 {[%emt 0:03:10]} Qd6 {[%emt 0:01:23]} 24. Ba2 {[%emt 0:02:42]} Qb6 {[%emt 0:01:05]} 25. b4 {[%emt 0:02:22]} c6 {[%emt 0:02:38]} 26. Rg2 {[%emt 0:04:54]} Ng6 {[%emt 0:04:08]} 27. Rh2 {[%emt 0:03:46]} Nf4 {[%emt 0:06:00]} 28. d4 {[%emt 0:02:31]} Bd6 {[%emt 0:00:34]} 29. dxe5 {[%emt 0:00:20]} fxe5 {[%emt 0:01:13]} 30. Qe3 {[%emt 0:02:14]} Bc5 {[%emt 0:00:34]} 31. Qxc5 {[%emt 0:09:41]} Qxc5 {[%emt 0:00:08]} 32. bxc5 {[%emt 0:01:01]} Nd3 {[%emt 0:00:27]} 33. Nb3 {[%emt 0:02:00]} Nxf2 {[%emt 0:01:08]} 34. Rf1 {[%emt 0:04:17]} dxe4 {[%emt 0:00:27]} 35. Rhxf2 {[%emt 0:00:28]} Rc8 {[%emt 0:00:47]} 36. Rf8 {[%emt 0:03:56]} e3 {[%emt 0:00:05]} 37. Rxc8+ {[%emt 0:01:16]} Kxc8 {[%emt 0:00:18]} 38. Re1 {[%emt 0:02:18]} Kd7 {[%emt 0:02:27]} 39. Rxe3 {[%emt 0:01:11]} Bc4 {[%emt 0:00:11]} 40. Rxe5 {[%emt 0:01:19]} Bd3+ {[%emt 0:00:13]} 41. Kc1 {[%emt 0:32:48]} b6 {[%emt 0:31:23]} 42. Bb1 {[%emt 0:01:46]} Bc4 {[%emt 0:00:23]} 43. Nd2 {[%emt 0:00:00]} Bb5 {[%emt 0:00:00]} 44. Bf5+ {[%emt 0:00:00]} Kc7 {[%emt 0:00:00]} 45. Re7+ {[%emt 0:00:00]} Kd8 {[%emt 0:00:00]} 46. Rxa7 {[%emt 0:00:00]} bxc5 {[%emt 0:02:16]} 47. a4 {[%emt 0:02:54]} Be2 {[%emt 0:00:14]} 48. a5 {[%emt 0:00:56]} Ke8 {[%emt 0:00:18]} 49. a6 {[%emt 0:00:16]} Kd8 {[%emt 0:00:06]} 50. Ra8+ {[%emt 0:01:01]} Kc7 {[%emt 0:00:47]} 51. Rc8+ {[%emt 0:00:17]} Kb6 {[%emt 0:00:30]} 52. a7 {[%emt 0:00:27]} Kxa7 {[%emt 0:00:06]} 53. Rxc6 {[%emt 0:00:37]} Bf1 {[%emt 0:00:07]} 54. Nxf1 {[%emt 0:00:42]} h5 {[%emt 0:00:05]} 55. g5 {[%emt 0:00:18]} h4 {[%emt 0:00:11]} 56. g6 {[%emt 0:00:19]} c4 {[%emt 0:00:14]} 57. g7 {[%emt 0:01:24]} Kb7 {[%emt 0:00:05]} 58. Rh6 {[%emt 0:01:01]} Kc7 {[%emt 0:00:05]} 59. g8=R {[%emt 0:00:18]} Kb7 {[%emt 0:00:04]} 60. Rg7+ {[%emt 0:00:19]} Kb8 61. Rh8# {[%emt 0:11:19]} 1-0

[Event "DVM U12W 2021"]
[Site "Willingen"]
[Date "2022.08.14"]
[Round "4"]
[White "Kremling, Alamea"]
[Black "Einacker, Lina"]
[Result "0-1"]
[ECO "D02"]
[WhiteElo "1077"]
[BlackElo "1010"]
[Annotator "NA RC"]
[PlyCount "92"]
[EventDate "2022.08.12"]
[EventType "team-tourn"]
[EventRounds "7"]
[EventCountry "GER"]
[SourceTitle "playchess.com"]
[Source "ChessBase"]
[SourceQuality "1"]
[TimeControl "40/5400+30:1800+30"]

1. d4 {[%emt 0:00:03]} d5 {[%emt 0:00:11]} 2. Bf4 {[%emt 0:00:52]} Nf6 {[%emt 0:00:29]} 3. e3 {[%emt 0:00:17]} e6 {[%emt 0:00:11]} 4. Nd2 {[%emt 0:00:40]} Be7 {[%emt 0:01:14]} 5. Ngf3 {[%emt 0:00:17]} Nh5 {[%emt 0:00:55]} 6. Bg3 {[%emt 0:00:55]} Nxg3 {[%emt 0:00:07]} 7. hxg3 {[%emt 0:00:17]} c5 {[%emt 0:02:33]} 8. c3 {[%emt 0:03:08]} c4 {[%emt 0:01:00]} 9. Ne5 {[%emt 0:03:57]} f6 {[%emt 0:03:02]} 10. Nef3 {[%emt 0:12:10]} Nd7 {[%emt 0:04:16]} 11. e4 {[%emt 0:02:04]} b5 {[%emt 0:08:03]} 12. e5 {[%emt 0:05:24]} fxe5 {[%emt 0:01:37]} 13. dxe5 {[%emt 0:01:30]} Qc7 {[%emt 0:04:01]} 14. Qe2 {[%emt 0:13:29]} O-O {[%emt 0:01:32]} 15. b3 {[%emt 0:04:36]} cxb3 {[%emt 0:05:27]} 16. Qd3 {[%emt 0:03:36]} h6 {[%emt 0:06:24]} 17. axb3 {[%emt 0:04:37]} Nxe5 {[%emt 0:01:21]} 18. Nxe5 {[%emt 0:02:18]} Qxe5+ {[%emt 0:00:22]} 19. Be2 {[%emt 0:04:07]} b4 {[%emt 0:02:32]} 20. Rc1 {[%emt 0:06:27]} Qf5 {[%emt 0:01:07]} 21. Qxf5 {[%emt 0:04:29]} Rxf5 {[%emt 0:00:08]} 22. g4 {[%emt 0:00:59]} Re5 {[%emt 0:01:40]} 23. Rh3 {[%emt 0:04:19]} bxc3 {[%emt 0:01:56]} 24. Rhxc3 {[%emt 0:01:26]} Ba6 {[%emt 0:01:35]} 25. Re3 {[%emt 0:01:44]} Rxe3 {[%emt 0:00:07]} 26. fxe3 {[%emt 0:00:08]} Rc8 {[%emt 0:00:53]} 27. Ra1 {[%emt 0:01:11]} Bxe2 {[%emt 0:01:03]} 28. Kxe2 {[%emt 0:00:20]} Rc7 {[%emt 0:01:55]} 29. Ra6 {[%emt 0:00:44]} e5 {[%emt 0:02:16]} 30. Re6 {[%emt 0:01:19]} Bf6 {[%emt 0:04:34]} 31. Rd6 {[%emt 0:00:56]} d4 {[%emt 0:00:40]} 32. exd4 {[%emt 0:01:18]} exd4 {[%emt 0:00:27]} 33. Nf3 {[%emt 0:00:27]} Rb7 {[%emt 0:01:13]} 34. Nd2 {[%emt 0:00:48]} Bg5 {[%emt 0:01:59]} 35. Rxd4 {[%emt 0:01:37]} Bxd2 {[%emt 0:00:12]} 36. Rd8+ {[%emt 0:00:26]} Kh7 {[%emt 0:01:18]} 37. Kxd2 {[%emt 0:00:08]} Rxb3 {[%emt 0:00:15]} 38. Ra8 {[%emt 0:01:18]} Ra3 {[%emt 0:00:39]} 39. Ke2 {[%emt 0:00:46]} Kg6 {[%emt 0:00:23]} 40. Kf2 {[%emt 0:00:14]} Kf6 {[%emt 0:00:54]} 41. g3 {[%emt 0:30:17]} Kg5 {[%emt 0:30:15]} 42. Rg8 {[%emt 0:00:15]} g6 {[%emt 0:00:40]} 43. Rf8 {[%emt 0:02:24]} Kxg4 {[%emt 0:03:12]} 44. Rf4+ {[%emt 0:00:12]} Kg5 {[%emt 0:01:13]} 45. Kg2 {[%emt 0:00:34]} a5 {[%emt 0:00:33]} 46. Kh3 {[%emt 0:01:10]} h5 {[%emt 0:01:38]} 0-1

[Event "DVM U12W 2021"]
[Site "Willingen"]
[Date "2022.08.14"]
[Round "4"]
[White "Fomenkova, Elina"]
[Black "Peglau, Lorena"]
[Result "0-1"]
[ECO "D04"]
[WhiteElo "1049"]
[BlackElo "1207"]
[Annotator "NA RC"]
[PlyCount "102"]
[EventDate "2022.08.12"]
[EventType "team-tourn"]
[EventRounds "7"]
[EventCountry "GER"]
[SourceTitle "playchess.com"]
[Source "ChessBase"]
[SourceQuality "1"]
[TimeControl "40/5400+30:1800+30"]

1. d4 {[%emt 0:00:04]} c6 {[%emt 0:00:00]} 2. Nf3 {[%emt 0:00:06]} d5 {[%emt 0:00:00]} 3. e3 {[%emt 0:00:16]} Nf6 {[%emt 0:00:00]} 4. Bd3 {[%emt 0:00:16]} Bg4 {[%emt 0:00:09]} 5. b3 {[%emt 0:00:27]} e6 {[%emt 0:00:05]} 6. Bb2 {[%emt 0:00:37]} c5 {[%emt 0:00:50]} 7. O-O {[%emt 0:00:16]} Nc6 {[%emt 0:00:06]} 8. a3 {[%emt 0:00:46]} Be7 {[%emt 0:00:11]} 9. Nbd2 {[%emt 0:00:22]} O-O {[%emt 0:00:14]} 10. Qe1 {[%emt 0:02:34]} Qb6 {[%emt 0:00:31]} 11. h3 {[%emt 0:00:45]} Bh5 {[%emt 0:06:50]} 12. Qb1 {[%emt 0:02:09]} a5 {[%emt 0:07:49]} 13. c4 {[%emt 0:01:51]} Bxf3 {[%emt 0:01:16]} 14. gxf3 {[%emt 0:01:07]} a4 {[%emt 0:06:58]} 15. Qc2 {[%emt 0:02:06]} axb3 {[%emt 0:00:52]} 16. Nxb3 {[%emt 0:04:09]} cxd4 {[%emt 0:01:12]} 17. exd4 {[%emt 0:07:16]} dxc4 {[%emt 0:02:09]} 18. Bxc4 {[%emt 0:02:27]} Rfd8 {[%emt 0:01:06]} 19. f4 {[%emt 0:16:42]} Bd6 {[%emt 0:04:07]} 20. d5 {[%emt 0:02:21]} Nxd5 {[%emt 0:01:22]} 21. Bxd5 {[%emt 0:00:42]} exd5 {[%emt 0:02:22]} 22. Qc3 {[%emt 0:01:16]} Bf8 {[%emt 0:01:05]} 23. a4 {[%emt 0:02:19]} Qb4 {[%emt 0:01:04]} 24. Qg3 {[%emt 0:00:52]} d4 {[%emt 0:01:19]} 25. Ba3 {[%emt 0:01:17]} Qc3 {[%emt 0:04:18]} 26. Qxc3 {[%emt 0:00:58]} dxc3 {[%emt 0:00:32]} 27. Bxf8 {[%emt 0:00:48]} Kxf8 {[%emt 0:02:57]} 28. Rfc1 {[%emt 0:01:20]} Rd3 {[%emt 0:00:39]} 29. Kg2 {[%emt 0:02:45]} b6 {[%emt 0:01:14]} 30. h4 {[%emt 0:02:13]} Nb4 {[%emt 0:01:38]} 31. a5 {[%emt 0:00:40]} bxa5 {[%emt 0:00:14]} 32. Nxa5 {[%emt 0:00:48]} c2 {[%emt 0:01:30]} 33. Nb7 {[%emt 0:00:37]} Rxa1 {[%emt 0:00:10]} 34. Rxa1 {[%emt 0:00:43]} Rd1 {[%emt 0:00:43]} 35. Ra8+ {[%emt 0:00:12]} Ke7 {[%emt 0:00:23]} 36. Nc5 {[%emt 0:01:12]} c1=Q {[%emt 0:00:15]} 37. Ra7+ {[%emt 0:00:45]} Kd6 {[%emt 0:00:43]} 38. Nb7+ {[%emt 0:00:30]} Ke6 {[%emt 0:00:34]} 39. f5+ {[%emt 0:00:53]} Kxf5 {[%emt 0:00:08]} 40. Ra5+ {[%emt 0:01:35]} Kg6 {[%emt 0:00:13]} 41. h5+ {[%emt 0:30:19]} Kh6 {[%emt 0:31:38]} 42. Rc5 {[%emt 0:01:17]} Rg1+ {[%emt 0:01:51]} 43. Kf3 {[%emt 0:00:23]} Qd1+ {[%emt 0:01:09]} 44. Ke4 {[%emt 0:00:27]} Qd3+ {[%emt 0:01:19]} 45. Kf4 {[%emt 0:01:04]} Nd5+ {[%emt 0:00:42]} 46. Ke5 {[%emt 0:00:24]} Re1+ {[%emt 0:00:17]} 47. Kd6 {[%emt 0:00:55]} Re6+ {[%emt 0:00:17]} 48. Kd7 {[%emt 0:00:50]} Nb6+ {[%emt 0:01:02]} 49. Kc7 {[%emt 0:01:33]} Qd7+ {[%emt 0:00:24]} 50. Kb8 {[%emt 0:00:53]} Qe8+ {[%emt 0:00:17]} 51. Ka7 {[%emt 0:00:14]} Qa8# 0-1

[Event "DVM U12W 2021"]
[Site "Willingen"]
[Date "2022.08.14"]
[Round "4"]
[White "Striebeck, Liv"]
[Black "Goeb, Franziska"]
[Result "0-1"]
[ECO "C50"]
[WhiteElo "1003"]
[BlackElo "1285"]
[Annotator "NA RC"]
[PlyCount "92"]
[EventDate "2022.08.12"]
[EventType "team-tourn"]
[EventRounds "7"]
[EventCountry "GER"]
[SourceTitle "playchess.com"]
[Source "ChessBase"]
[SourceQuality "1"]
[TimeControl "40/5400+30:1800+30"]

1. e4 {[%emt 0:00:03]} e5 {[%emt 0:00:05]} 2. Nf3 {[%emt 0:00:13]} Nc6 {[%emt 0:00:04]} 3. Nc3 {[%emt 0:00:07]} Nf6 {[%emt 0:00:12]} 4. Bc4 {[%emt 0:00:33]} Bc5 {[%emt 0:00:31]} 5. d3 {[%emt 0:00:37]} h6 {[%emt 0:00:16]} 6. O-O {[%emt 0:00:18]} O-O {[%emt 0:00:07]} 7. Nxe5 {[%emt 0:03:33]} Nxe5 {[%emt 0:00:41]} 8. b3 {[%emt 0:01:30]} Nxc4 {[%emt 0:01:05]} 9. bxc4 {[%emt 0:01:02]} d6 {[%emt 0:01:34]} 10. d4 {[%emt 0:02:36]} Bb6 {[%emt 0:04:23]} 11. Re1 {[%emt 0:02:07]} Bg4 {[%emt 0:03:56]} 12. f3 {[%emt 0:00:20]} Bh5 {[%emt 0:00:23]} 13. Be3 {[%emt 0:10:37]} Qd7 {[%emt 0:06:46]} 14. Rb1 {[%emt 0:13:24]} Ba5 {[%emt 0:07:43]} 15. Bd2 {[%emt 0:00:32]} b6 {[%emt 0:04:10]} 16. h3 {[%emt 0:12:12]} Rfe8 {[%emt 0:06:46]} 17. g4 {[%emt 0:02:22]} Bg6 {[%emt 0:01:03]} 18. Kf1 {[%emt 0:04:58]} h5 {[%emt 0:02:24]} 19. Kg1 {[%emt 0:07:08]} hxg4 {[%emt 0:01:59]} 20. hxg4 {[%emt 0:00:22]} Bxc3 {[%emt 0:07:09]} 21. Bxc3 {[%emt 0:00:30]} Qe7 {[%emt 0:01:27]} 22. e5 {[%emt 0:01:22]} dxe5 {[%emt 0:03:45]} 23. dxe5 {[%emt 0:03:06]} Nd7 {[%emt 0:03:29]} 24. f4 {[%emt 0:05:32]} Rad8 {[%emt 0:03:29]} 25. Qe2 {[%emt 0:00:31]} Qc5+ {[%emt 0:00:56]} 26. Kf1 {[%emt 0:00:59]} Qc6 {[%emt 0:01:31]} 27. Rbc1 {[%emt 0:01:54]} Qh1+ {[%emt 0:01:53]} 28. Kf2 {[%emt 0:00:15]} Qh2+ {[%emt 0:00:29]} 29. Kf1 {[%emt 0:00:18]} Qxf4+ {[%emt 0:00:37]} 30. Qf2 {[%emt 0:01:09]} Qxc4+ {[%emt 0:00:42]} 31. Re2 {[%emt 0:01:05]} Qxc3 {[%emt 0:01:13]} 32. Qh4 {[%emt 0:01:05]} Bd3 {[%emt 0:03:36]} 33. Kf2 {[%emt 0:00:48]} Bxe2 {[%emt 0:01:09]} 34. Rh1 {[%emt 0:01:01]} Qd4+ {[%emt 0:03:17]} 35. Kg3 {[%emt 0:02:52]} Qe3+ {[%emt 0:02:08]} 36. Kg2 {[%emt 0:01:44]} Bf3+ {[%emt 0:00:51]} 37. Kh2 {[%emt 0:00:20]} Bxh1 {[%emt 0:02:29]} 38. Kxh1 {[%emt 0:00:07]} Qh6 {[%emt 0:00:13]} 39. Qxh6 {[%emt 0:00:13]} gxh6 {[%emt 0:00:05]} 40. Kh2 {[%emt 0:00:05]} Rxe5 {[%emt 0:00:09]} 41. Kg3 {[%emt 0:30:14]} Nc5 {[%emt 0:30:10]} 42. Kf4 {[%emt 0:00:16]} Rg5 {[%emt 0:00:08]} 43. c3 {[%emt 0:00:15]} Ne6+ {[%emt 0:00:10]} 44. Ke4 {[%emt 0:00:18]} Rxg4+ {[%emt 0:00:23]} 45. Kf5 {[%emt 0:00:18]} Rf4+ {[%emt 0:00:12]} 46. Ke5 {[%emt 0:00:16]} Rd3 {[%emt 0:01:02]} 0-1

[Event "DVM U12W 2021"]
[Site "Willingen"]
[Date "2022.08.14"]
[Round "4"]
[White "Shynkar, Darya"]
[Black "Berger, Jennifer"]
[Result "1-0"]
[ECO "D06"]
[WhiteElo "1001"]
[BlackElo "1050"]
[Annotator "NA RC"]
[PlyCount "52"]
[EventDate "2022.08.12"]
[EventType "team-tourn"]
[EventRounds "7"]
[EventCountry "GER"]
[SourceTitle "playchess.com"]
[Source "ChessBase"]
[SourceQuality "1"]
[TimeControl "40/5400+30:1800+30"]

1. d4 {[%emt 0:00:11]} d5 {[%emt 0:00:00]} 2. c4 {[%emt 0:00:08]} e6 {[%emt 0:00:00]} 3. Nc3 {[%emt 0:00:20]} Nf6 {[%emt 0:00:00]} 4. cxd5 {[%emt 0:00:52]} Nxd5 {[%emt 0:00:02]} 5. e4 {[%emt 0:01:22]} Nb6 {[%emt 0:00:19]} 6. Nf3 {[%emt 0:00:26]} Nc6 {[%emt 0:00:55]} 7. Bb5 {[%emt 0:00:14]} Bd7 {[%emt 0:04:01]} 8. O-O {[%emt 0:01:54]} Be7 {[%emt 0:04:11]} 9. Re1 {[%emt 0:00:27]} O-O {[%emt 0:04:49]} 10. a3 {[%emt 0:01:30]} a6 {[%emt 0:01:26]} 11. Bd3 {[%emt 0:02:08]} Na7 {[%emt 0:03:36]} 12. Bf4 {[%emt 0:00:26]} c5 {[%emt 0:02:12]} 13. dxc5 {[%emt 0:00:23]} Bxc5 {[%emt 0:06:34]} 14. Rc1 {[%emt 0:01:17]} Rc8 {[%emt 0:02:46]} 15. b4 {[%emt 0:02:35]} Be7 {[%emt 0:04:31]} 16. Be3 {[%emt 0:04:20]} Nc6 {[%emt 0:09:26]} 17. Qc2 {[%emt 0:00:57]} e5 {[%emt 0:14:19]} 18. Red1 {[%emt 0:02:57]} Qc7 {[%emt 0:00:58]} 19. Qb2 {[%emt 0:00:37]} Bg4 {[%emt 0:00:38]} 20. Be2 {[%emt 0:00:37]} Rcd8 {[%emt 0:00:55]} 21. Nd5 {[%emt 0:15:12]} Qd6 {[%emt 0:00:37]} 22. Nxb6 {[%emt 0:00:21]} Qg6 {[%emt 0:00:34]} 23. Nd5 {[%emt 0:01:18]} Na7 {[%emt 0:00:12]} 24. Nxe7+ {[%emt 0:00:33]} Kh8 {[%emt 0:00:06]} 25. Nxg6+ {[%emt 0:00:25]} fxg6 {[%emt 0:00:10]} 26. Rxd8 Re8 {[%emt 1:46:40]} 1-0

[Event "DVM U12W 2021"]
[Site "Willingen"]
[Date "2022.08.14"]
[Round "4"]
[White "Yan, Jenny"]
[Black "Hovhannisyan, Sofia"]
[Result "0-1"]
[ECO "D11"]
[WhiteElo "984"]
[BlackElo "935"]
[Annotator "NA RC"]
[PlyCount "62"]
[EventDate "2022.08.12"]
[EventType "team-tourn"]
[EventRounds "7"]
[EventCountry "GER"]
[SourceTitle "playchess.com"]
[Source "ChessBase"]
[SourceQuality "1"]
[TimeControl "40/5400+30:1800+30"]

1. c4 {[%emt 0:00:23]} c6 {[%emt 0:00:00]} 2. Nf3 {[%emt 0:00:16]} d5 {[%emt 0:00:59]} 3. d4 {[%emt 0:01:04]} Nf6 {[%emt 0:00:58]} 4. Nc3 {[%emt 0:00:32]} Bg4 {[%emt 0:00:27]} 5. e3 {[%emt 0:00:54]} e6 {[%emt 0:01:22]} 6. Be2 {[%emt 0:00:46]} Nbd7 {[%emt 0:01:58]} 7. b3 {[%emt 0:00:56]} Bb4 {[%emt 0:00:15]} 8. Bb2 {[%emt 0:00:43]} O-O {[%emt 0:00:57]} 9. O-O {[%emt 0:00:27]} c5 {[%emt 0:02:08]} 10. h3 {[%emt 0:00:27]} Bh5 {[%emt 0:03:15]} 11. cxd5 {[%emt 0:00:50]} exd5 {[%emt 0:01:45]} 12. Ne5 {[%emt 0:01:27]} Bxe2 {[%emt 0:02:32]} 13. Qxe2 {[%emt 0:02:52]} b6 {[%emt 0:01:28]} 14. Nxd7 {[%emt 0:00:38]} Qxd7 {[%emt 0:02:59]} 15. a3 {[%emt 0:00:48]} Bxc3 {[%emt 0:01:16]} 16. Bxc3 {[%emt 0:01:39]} Rac8 {[%emt 0:01:21]} 17. dxc5 {[%emt 0:01:53]} Ne4 {[%emt 0:03:18]} 18. Bb2 {[%emt 0:01:08]} bxc5 {[%emt 0:06:05]} 19. Qd1 {[%emt 0:01:04]} Rfd8 {[%emt 0:02:03]} 20. b4 {[%emt 0:02:12]} Qb5 {[%emt 0:06:18]} 21. Rb1 {[%emt 0:04:05]} Rc6 {[%emt 0:01:03]} 22. bxc5 {[%emt 0:01:40]} Qxc5 {[%emt 0:04:35]} 23. Rc1 {[%emt 0:02:49]} Qb6 {[%emt 0:01:49]} 24. Rxc6 {[%emt 0:00:24]} Qxc6 {[%emt 0:02:09]} 25. Qd4 {[%emt 0:02:07]} Qg6 {[%emt 0:02:06]} 26. Qxa7 {[%emt 0:01:29]} h6 {[%emt 0:03:49]} 27. Qa5 {[%emt 0:01:08]} Rd6 {[%emt 0:03:37]} 28. Rd1 {[%emt 0:01:05]} Qg5 {[%emt 0:05:07]} 29. Bc1 {[%emt 0:00:40]} Rg6 {[%emt 0:02:19]} 30. g4 {[%emt 0:00:58]} Qh4 {[%emt 0:03:51]} 31. Qe1 {[%emt 0:04:54]} Qxh3 0-1